Cogmind - Beta 16 @@@ ROGUE MODE // 2025.11.09 @ 22:31:02 Player: Mozco Result: Destroyed by F3-ZNK(R) with Subdweller Beam Cannon Performance ------------- Evolutions (0) 0 Regions Visited (2) 400 Robots Destroyed (27) 135 Value Destroyed (511) 511 Prototype IDs (2) 40 Alien Tech Used (0) 0 Bonus (0) 0 TOTAL SCORE: 1086 Bonus ------- None Cogmind --------- Core Integrity 0/250 Matter 231/300 Energy 250/250 System Corruption 0% Temperature Cool (9) Movement Walking (260) Ox2 Location -10/Subcaves Parts ------- > --- POWER (1) -------- Ion Engine > --- PROPULSION (2) --- Aluminum Leg > --- UTILITY (2) ------ Small Storage Unit > --- WEAPON (2) ------- Subdweller Beam Cannon Light Cannon > --- INVENTORY (8) ---- Aluminum Leg Aluminum Leg High-capacity Storage Unit EM Pulse Gun Light Cannon Grenade Launcher Grenade Launcher Peak State ------------ > --- POWER ------------ Ion Engine > --- PROPULSION ------- Aluminum Leg Aluminum Leg > --- UTILITY ---------- Small Storage Unit > --- WEAPON ----------- Subdweller Beam Cannon Light Cannon > --- INVENTORY -------- Aluminum Leg Aluminum Leg Aluminum Leg High-capacity Storage Unit EM Pulse Gun Light Cannon Grenade Launcher Grenade Launcher [Rating: 7] Favorites ----------- Power Ion Engine Engine Ion Engine Propulsion Aluminum Leg Leg Aluminum Leg Utility Small Storage Unit Storage Small Storage Unit Weapon Light Cannon Energy Gun EM Pulse Gun Energy Cannon Subdweller Beam Cannon Ballistic Gun Light Assault Rifle Ballistic Cannon Light Cannon Launcher Grenade Launcher Build | -11 -10 -10 ------- Run | Yrd Mat Sub Slots Evolved . | . . . Power . | . . . Propulsion . | . . . Utility . | . . . Weapon . | . . . Parts Attached 16 | 6 8 2 Power 2 | 1 1 . Engine 2 | 1 1 . Core . | . . . Reactor . | . . . Propulsion 5 | 2 2 1 Treads . | . . . Leg 5 | 2 2 1 Wheel . | . . . Hover . | . . . Flight . | . . . Utility 1 | 1 . . Device . | . . . Storage 1 | 1 . . Processor . | . . . Hackware . | . . . Protection . | . . . Artifact . | . . . Weapon 8 | 2 5 1 Energy Gun 2 | 1 1 . Energy Cannon 1 | . . 1 Ballistic Gun 1 | 1 . . Ballistic Cannon 2 | . 2 . Launcher 2 | . 2 . Special Weapon . | . . . Impact Weapon . | . . . Slashing Weapon . | . . . Piercing Weapon . | . . . Special Melee Weapon . | . . . Unidentified Prototypes . | . . . Parts Lost 3 | . 1 2 Power 1 | . 1 . Propulsion 2 | . . 2 Utility . | . . . Weapon . | . . . Highest Loss Streak 1 | . 1 1 To Critical Strikes . | . . . Average Backups 6 | 1 6 7 Power . | . . . Propulsion 1 | . 1 2 Utility . | . . 1 Weapon 3 | . 3 4 Tool/Special . | . . . Unused Backups 5 | . 3 2 Power . | . . . Propulsion 2 | . 1 1 Utility 2 | . 1 1 Weapon 1 | . 1 . Tool/Special . | . . . Average Slot Usage (%) 83 | . 82 84 Engine 12 | . 11 14 Leg 27 | . 28 27 Storage 14 | . 14 14 Energy Gun 5 | . 11 . Energy Cannon 3 | . . 6 Ballistic Gun 6 | . 13 . Ballistic Cannon 11 | . . 21 Peak Build Rating 7 | 6 6 7 Average Rating 6 | 4 5 6 On Entrance 4 | . 6 6 Avg Prop Armor Cover (%) . | . . . Naked Turns . | . . . Heaviest Build 21 | 13 16 21 Greatest Support 20 | 20 20 20 Greatest Overweight (x) 2 | . . 2 Average Overweight (x) . | . . . Largest Inventory Capacity 8 | 8 8 8 Average Capacity 7 | 6 8 8 Most Carried 8 | 2 8 8 Average Carried 6 | 1 6 7 Final Capacity 8 | 8 8 8 Final Carried 8 | 2 8 7 Class Distribution -------------------- 100% | Mutant Dominant Class ---------------- Mutant | -10/Materials Mutant | -10/Subcaves Resources | -11 -10 -10 ----------- Run | Yrd Mat Sub Matter Collected 562 | 201 171 190 Remotely . | . . . Salvage Created 589 | . 388 201 Parts 52 | . 41 11 Haulers Intercepted 2 | . 2 . Recyclers Shooed 2 | . 2 . Parts Field Recycled . | . . . Retrieved Matter . | . . . Parts Self-Destructed 10 | . . 10 Prevented . | . . . Parts Restored . | . . . Kills | -11 -10 -10 ------- Run | Yrd Mat Sub Combat Hostiles Destroyed 19 | . 13 6 Guns 3 | . 3 . Cannons 6 | . . 6 AOE 10 | . 10 . Classes Destroyed 10 | . 8 2 Worker 1 | . 1 . Builder 2 | . 2 . Hauler 2 | . 2 . Mechanic 1 | . 1 . Operator 1 | . 1 . Watcher 1 | . 1 . Swarmer 10 | . 9 1 Grunt 4 | . 4 . Sentry 1 | . . 1 Subdweller 4 | . . 4 Best Kill Streak 9 | . 9 2 Combat Bots Only 7 | . 7 2 Max Kills in Single Turn 3 | . 3 1 Gunslinging . | . . . Exploded 2 | . 2 . Melee . | . . . Uniques/NPCs Destroyed . | . . . Combat | -11 -10 -10 -------- Run | Yrd Mat Sub Hostile Shots Fired 92 | . 62 30 Missed 20 | . 14 6 Hits 72 | . 48 24 Projectile 72 | . 48 24 Damage Taken 1001 | . 479 522 Core 255 | . 121 134 Absorbed by Shields . | . . . Core Remaining (%) 100 | 100 . . Volleys Fired 64 | . 41 23 Largest 2 | . 2 2 Hottest 110 | . 60 110 Shots Fired 111 | . 65 46 Gun 53 | . 53 . Cannon 49 | . 3 46 Launcher 9 | . 9 . Special . | . . . Kinetic 73 | . 35 38 Thermal 24 | . 16 8 Explosive 9 | . 9 . Electromagnetic 5 | . 5 . Robot Hit Streak 10 | . 10 9 Robot Miss Streak 3 | . 3 2 Penetration Max . | . . . Secondary Targets 1 | . 1 . Max Gunslinging Chain 1 | . 1 . Shots Hit Robots 60 | . 38 22 Core Hits 39 | . 29 10 Critical Kills . | . . . Critical Parts Destroyed . | . . . Critical Strikes 1 | . . 1 Blast 1 | . . 1 Melee Attacks . | . . . Impact . | . . . Slashing . | . . . Piercing . | . . . Sneak Attacks . | . . . Combat Hostiles . | . . . Follow-up Attacks . | . . . Damage Inflicted 1387 | . 933 454 Guns 323 | . 323 . Cannons 504 | . 50 454 Explosions 560 | . 560 . Melee . | . . . Ramming . | . . . Kinetic 499 | . 208 291 Thermal 315 | . 152 163 Explosive 560 | . 560 . Electromagnetic 13 | . 13 . Impact . | . . . Slashing . | . . . Piercing . | . . . Highest Corruption . | . . . Average Corruption . | . . . Corruption Purged . | . . . Corruption Blocked . | . . . Overload Shots . | . . . Overflow Damage 3 | . 3 . Projectiles . | . . . Explosions 3 | . 3 . Melee . | . . . Knockbacks 1 | . . 1 Impact . | . . . Kinetic 1 | . . 1 Secondary . | . . . Self-Inflicted Damage 11 | . 11 . Shots 1 | . 1 . Rammed . | . . . Targets Rammed . | . . . Kicked . | . . . Crushed . | . . . Highest Temperature 40 | . 40 6 Average Temperature 12 | . 13 3 Received Heat Transfer 282 | . 138 144 Siege Activations . | . . . Martial Activations . | . . . Shielding Activations . | . . . Robots Disrupted . | . . . Combat Hostiles . | . . . Robots Corrupted . | . . . Combat Hostiles . | . . . Parts Fried . | . . . Impact Corruptions . | . . . Robots Melted . | . . . Combat Hostiles . | . . . Parts Melted 1 | . . 1 Heat Transferred 572 | . 350 222 Parts Sabotaged . | . . . Parts Stolen . | . . . Parts Stripped . | . . . Power Chain Reactions . | . . . Alert | -11 -10 -10 ------- Run | Yrd Mat Sub Maximum Alert Level 1 | . 1 . Low Security (%) 91 | 100 90 . Level 1 8 | . 9 . Level 2 . | . . . Level 3 . | . . . Level 4 . | . . . Level 5 . | . . . High Security . | . . . Max Security . | . . . Peak Influence 269 | . 269 . Initial . | . . . Average 82 | . 94 . Influence Increases 453 | . 413 40 Destroy 0b10 Robot/C 300 | . 260 40 Destroy 0b10 Robot/NC 40 | . 40 . Destroy Leader 56 | . 56 . Successful Hack 5 | . 5 . Disable Machine 15 | . 15 . Destroy Structure 37 | . 37 . Influence Decreases 453 | . 153 300 Entered New Map 125 | . . 125 Time Decay 308 | . 143 165 Lost Part 20 | . 10 10 Squads Dispatched 3 | . 3 . Investigation 1 | . 1 . Extermination . | . . . Reinforcement 2 | . 2 . Assault . | . . . Garrison . | . . . Intercept . | . . . Searches Triggered . | . . . Construction Impeded . | . . . Haulers Reinforced . | . . . Active Scanning Responses . | . . . Cargo Convoy Interrupts . | . . . Stealth | -11 -10 -10 --------- Run | Yrd Mat Sub Distress Signals . | . . . Communications Jammed . | . . . Distress Signals . | . . . Times Spotted 29 | . 21 8 Peak Tracking Total 5 | . 5 2 Tactical Retreats . | . . . Traps | -11 -10 -10 ------- Run | Yrd Mat Sub Traps Triggered 1 | . 1 . Indirectly . | . . . Trap Hack Attempts . | . . . Triggered . | . . . Disarmed . | . . . Reprogrammed . | . . . Reused . | . . . Traps Extracted . | . . . Installed . | . . . Triggered . | . . . Machines | -11 -10 -10 ---------- Run | Yrd Mat Sub Machines Disabled 1 | . 1 . Max in Single Turn 1 | . 1 . Machines Repaired . | . . . Machines Dismantled . | . . . Machines Sabotaged . | . . . Overloaded Fab Kills . | . . . Hacking | -11 -10 -10 --------- Run | Yrd Mat Sub Machines Accessed 2 | . 2 . Terminals 2 | . 2 . Fabricators . | . . . Repair Stations . | . . . Recycling Units . | . . . Scanalyzers . | . . . Garrison Access . | . . . Total Hacks 4 | . 4 . Successful 2 | . 2 . Failed 2 | . 2 . Catastrophic . | . . . Database Lockouts . | . . . Manual 2 | . 2 . Terminals 4 | . 4 . Fabricators . | . . . Repair Stations . | . . . Recycling Units . | . . . Scanalyzers . | . . . Garrison Access . | . . . Terminal Hacks 1 | . 1 . Prototype ID Bank 1 | . 1 . Fabricator Hacks . | . . . Repair Station Hacks . | . . . Recycling Unit Hacks . | . . . Scanalyzer . | . . . Garrison Access Hacks . | . . . Unauthorized Hacks 1 | . 1 . Terminals 1 | . 1 . Botnet 1 | . 1 . Fabricators . | . . . Repair Stations . | . . . Recycling Units . | . . . Scanalyzers . | . . . Garrison Access . | . . . Data Cores Recovered . | . . . Used . | . . . Hacking Detections 2 | . 2 . Full Trace Events . | . . . Feedback Events . | . . . Feedback Blocked . | . . . Robot Schematics Acquired . | . . . Robots Built . | . . . Authchips . | . . . Time . | . . . Total Robot Build Rating . | . . . Part Schematics Acquired . | . . . Parts Built . | . . . Authchips . | . . . Time . | . . . Total Part Build Rating . | . . . Part Studies Acquired . | . . . Parts Repaired . | . . . Time . | . . . Parts Recycled . | . . . Recycled Matter . | . . . Retrieved Matter . | . . . Retrieved Components . | . . . Parts Scanalyzed . | . . . Part Schematics Acquired . | . . . Parts Damaged . | . . . Bothacking | -11 -10 -10 ------------ Run | Yrd Mat Sub Used RIF Installer . | . . . Robots Hacked . | . . . Non-combat . | . . . Combat . | . . . Robot Hacks Applied . | . . . Relay Couplers Released . | . . . Fabnet Peak Effective % . | . . . Robots Rewired . | . . . Allies Hacked . | . . . Hacks Repelled . | . . . Allies | -11 -10 -10 -------- Run | Yrd Mat Sub Total Allies . | . . . Largest Group . | . . . Highest-Rated Group . | . . . Highest-Rated Ally . | . . . Total Orders . | . . . Ally Attacks . | . . . Total Damage . | . . . Kills . | . . . Allies Corrupted . | . . . Allies Melted . | . . . Intel | -11 -10 -10 ------- Run | Yrd Mat Sub Active Infowar (turns) . | . . . Robot Analysis Total . | . . . Derelict Logs Recovered . | . . . Drone Launches . | . . . Drone Recoveries . | . . . Exploration | -11 -10 -10 ------------- Run | Yrd Mat Sub Turns Passed 912 | 60 428 424 Spaces Moved 544 | 46 257 241 Core 8 | 8 . . Treads . | . . . Legs 536 | 38 257 241 Wheels . | . . . Hover . | . . . Flight . | . . . Fastest Speed 50 | 50 120 120 Average Speed 130 | 107 120 146 Slowest Speed 260 | 120 120 260 Overloaded Moves . | . . . Propulsion Burnouts . | . . . Robots Hopped . | . . . Potential Cave-ins . | . . . Cave-ins Triggered . | . . . Exploration Rate (%) 23 | 5 52 12 Regions Visited 2 Branch Regions 1 Pre-discovered Areas . | . . . Known Exits Taken . | . . . Unknown Exits Taken 2 | 1 1 . Scrap Searched . | . . . Spaces Dug . | . . . Terrain Destroyed 40 | . 40 . Melee . | . . . Projectile . | . . . AOE 40 | . 40 . Terrain Rammed . | . . . Walls Destroyed . | . . . Machines Disabled . | . . . Actions | -11 -10 -10 --------- Run | Yrd Mat Sub Total 643 | 53 323 267 Wait . | . . . Move 542 | 45 256 241 Hop . | . . . Pick Up 12 | 2 10 . Fast Attach 9 | 6 2 1 Attach 2 | . 1 1 Detach 1 | . 1 . Swap 5 | . 5 . Drop 8 | . 7 1 Fire 64 | . 41 23 Melee . | . . . Ram . | . . . Kick . | . . . Crush . | . . . Escape Stasis . | . . . Rewire . | . . . Trap . | . . . Miscellaneous . | . . . Route ------- -11/Scrapyard -10/Materials (discovered 2 exits: [*Mat] / [*Sub]) -10/Subcaves (discovered 1 exit: [*Scr]) History --------- Turn | Location | Event 2 | -11/Scrapyard | Met Revision 17 8 | -11/Scrapyard | Discovered new exit (range 15) 61 | -11/Scrapyard | Entered Materials 289 | -10/Materials | Destroyed 7 combat bots 292 | -10/Materials | Discovered new exit (range 16) 341 | -10/Materials | Build established: Mutant 476 | -10/Materials | Discovered new exit (range 9) 489 | -10/Materials | Entered Subcaves 490 | -10/Subcaves | Approached by a straggling Scientist 493 | -10/Subcaves | Core integrity fell below 50% 553 | -10/Subcaves | Core integrity fell below 20% 623 | -10/Subcaves | Scientist uncovered a shortcut to Scraptown 913 | -10/Subcaves | Destroyed by F3-ZNK(R) with Subdweller Beam Cannon Last Messages --------------- 00581_ Subatomizers dissect the Sub. Optics. A1-45N(c): "I think it's somewhere northwest of here" 00599_ Acquired 11 matter. 00605_ O9-PBR(u) builds Twisted Machinery. 00623_ A1-45N(c): "Hah, right again, there it is!" 00707_ Subatomizers dissect the Sub. Laser. 00718_ Dropped Lgt. Cannon. 00719_ Acquired Sub. Beam Cannon. 00721_ Subatomizers dissect the Sub. Laser. 00728_ Acquired 3 matter. 00733_ Subatomizers dissect the Sub. Laser. 00799_ Aluminum Leg destroyed. 00801_ ES-ABV(R) knocked back. 00805_ ES-ABV(R) destroyed. 00808_ Sub. Power Source melted. 00808_ T2-QPY(R) destroyed. 00815_ Acquired 1 matter. 00819_ Acquired 52 matter. 00845_ O9-PBR(u) builds Twisted Machinery. 00908_ Aluminum Leg destroyed. Map ----- +----------------------------------------------------+ | ?????????????????????????????????????????????????? | | ?????????????????????????????????????????????????? | | ?????????????????????????????????????????????????? | | ?????????????????????????????????????????????????? | | ?????????????????????????????????????????????????? | | ?????????????????????????????????????????????????? | | ?????????????????????????????????????????????????? | | ?????????????????????????????????????????????????? | | ????????????????##???????????????????????????????? | | ???????????????## ??????????????????????????????? | | ???????????????# ??#####??????????????????????? | | ??????????????? "" ##"" #??????????????????????? | | ??????????????? "" " #???????????????????????? | | ????????????????# ## "" ##?????######???????????? | | ???????????????????# ### "#????## ##??????????? | | ??????????????????????# ##????# ##?????????? | | ??????????????????????#" #?????# % #?????????? | | ?????????????????????## "#?????# #?????????? | | ???????????????????### "####### ] ##????????? | | ???????????????????# " ""### & #????????? | | ???????????????????### "" "" ### & ###????????? | | ?????????????????????##" R"" ### %!##?????????? | | ??????????????????????#"" R" #?#"= #?????????? | | ??????????????????????#"" ""####?# ##?????????? | | ???????????????? ??##" #????# #?????????? | | ???????????????# ####@ ####### #?????????? | | ???????????????# > ""# ## #?????????? | | ????????????????# "" " ## #?????????? | | ?????????????????# "" u #?????????? | | ?????????????????## ## ## c ##?????????? | | ??????????????????##??##?## #??????????? | | ?????????????????????????## #?????????? | | ????????????????????????## ## #????????? | | ???????????????????????## ##### ### #????????? | | ???????????????????????# #???###??###????????? | | ???????????????????????# ##???????????????????? | | ???????????????????????## #????????????????????? | | ???????????????????????## ##???###?????????????? | | ??????????????????????## ##### ##????????????? | | ??????????????????????# #????????????? | | ??????????????????????# #????????????? | | ??????????????????????## ##????????????? | | ???????????????????????#### #####?????????? | | ??????????????????????????# ##????????? | | ??????????????????????????# ### #????????? | | ??????????????????????????# #?## #????????? | | ??????????????????????????# #??##### ##????????? | | ?????????????????????????? ?????## #?????????? | | ????????????????????????? ?##### ##????????? | | ???????????????????????? # #### !! #????????? | +----------------------------------------------------+ Best States ------------- Heat Dissipation 25 Energy Generation 10 Energy Capacity 250 Matter Stores 291 Matter Capacity 300 Sight Range 16 Terrain Scan Density 10 Evasion (%) 55 Item Schematics ----------------- None Robot Schematics ------------------ None Fabricated ------------ Nothing Repaired ---------- Nothing Studied --------- None Alien Tech Used ----------------- None Achievements -------------- None Challenges ------------ None Game ------ Seed ImpulseHugeNukerbomber Manual? 0 Play Time 00:07:54 Cumulative 240.1 hours Start 2025.11.09 @ 22:19:33 End 2025.11.09 @ 22:31:02 Sessions 1 Manual Loads 0 Difficulty Rogue Special Mode None Game No. 245 Rogue 241 Adventurer 3 Explorer 1 Win Type - Total 1 Types 1/0/0/0/0/0/0/0/0/0 Lore% 74 Gallery% 74 Achievement% 57 Wizard Run 0 Options --------- Layout 0 ASCII 0 Keyboard 0 Movement Mouse Keybinds 0 Fullscreen 2 Font 18/SmallcapsGlow Map View 76x50 Zoom Use 0% Tactical HUD 1 Map Filters NONE Filters NONE Steam 1 RUN: 467995b6-28ed-44be-9afd-860d01c8589c